fUSD/lending_fUSD_20260627
["ID","MTS","AMOUNT","RATE_DAILY","PERIOD"]
[426512768,1782502242000,-300.0,0.00030099,10]
[426512778,1782502242000,-151.56702897,0.00030258,29]
[426512762,1782502242000,-676.0,0.00030003,5]
[426512761,1782502242000,-682.0,0.0003,5]
[426512760,1782502242000,-682.0,0.0003,5]
[426512759,1782502242000,-210.67815293,0.0003,2]
[426512758,1782502242000,-675.0,0.0003,5]
[426512767,1782502242000,-300.0,0.00030099,10]
[426512846,1782502243000,-333.51059254,0.00032994,2]
[426512845,1782502243000,-300.0,0.00032994,10]
[426512844,1782502243000,-220.06999421,0.00032992,14]
[426512843,1782502243000,-151.0,0.00032992,14]
[426512837,1782502243000,-151.0,0.00032992,14]
[426512840,1782502243000,-151.0,0.00032992,14]
[426512842,1782502243000,-151.0,0.00032992,14]
[426512841,1782502243000,-151.0,0.00032992,14]
[426512838,1782502243000,-151.0,0.00032992,14]
[426512836,1782502243000,-151.0,0.00032992,14]
[426512839,1782502243000,-151.0,0.00032992,14]
[426512848,1782502243000,-173.66,0.00033094,2]
[426512856,1782502243000,-562.4710085,0.00033502,60]
[426512847,1782502243000,-673052.64529744,0.00032995,2]
[426512857,1782502243000,-371.8845997,0.00033502,60]
[426512849,1782502243000,-644.45,0.00033094,2]
[426512854,1782502243000,-386.1025824,0.00033502,60]
[426512852,1782502243000,-322.0,0.000331,2]
[426512855,1782502243000,-314.9512598,0.00033502,60]
[426512851,1782502243000,-310.0,0.000331,2]
[426512853,1782502243000,-591.9720597,0.00033502,60]
[426512859,1782502243000,-638.0,0.00033596,2]
[426512869,1782502243000,-288.27225766,0.0003392,2]
[426512858,1782502243000,-282.0,0.00033596,2]
[426512835,1782502243000,-497.0,0.0003296,20]
[426512850,1782502243000,-4401.0,0.00033097,10]
[426512830,1782502243000,-401.43,0.00032877,2]
[426512821,1782502243000,-151.0,0.00032272,2]
[426512827,1782502243000,-5528.0,0.000328,5]
[426512860,1782502243000,-907.0,0.00033596,2]
[426512805,1782502243000,-300.0,0.000316,10]
[426512809,1782502243000,-297.13,0.00031623,3]
[426512808,1782502243000,-180.0,0.00031611,30]
[426512806,1782502243000,-158.0,0.00031603,30]
[426512810,1782502243000,-1058.73,0.00031624,30]
[426512807,1782502243000,-156.0,0.00031611,30]
[426512812,1782502243000,-2934.0,0.00031824,10]
[426512813,1782502243000,-6814.22723313,0.000319,7]
[426512811,1782502243000,-158.05,0.000318,7]
[426512814,1782502243000,-151.56702897,0.0003194,33]
[426512815,1782502243000,-2303.0459447,0.00031989,2]
[426512826,1782502243000,-286.27,0.00032641,3]
[426512820,1782502243000,-151.0,0.00032272,2]
[426512816,1782502243000,-497.0,0.00032,20]
[426512818,1782502243000,-293.0,0.000322,15]
[426512819,1782502243000,-150.53,0.00032221,120]
[426512823,1782502243000,-158.0,0.00032603,30]
[426512831,1782502243000,-19800.0,0.000329,12]
[426512825,1782502243000,-180.0,0.00032611,30]
[426512834,1782502243000,-1342.0,0.00032959,2]
[426512822,1782502243000,-158.05,0.000326,7]
[426512824,1782502243000,-156.0,0.00032611,30]
[426512833,1782502243000,-6566.0,0.00032932,2]
[426512828,1782502243000,-169.38,0.00032839,120]
[426512829,1782502243000,-151.0,0.00032843,14]
[426512817,1782502243000,-1630.84148816,0.00032011,2]
[426512861,1782502243000,-3649.0,0.00033596,2]
[426512915,1782502243000,-553.65216834,0.000352,30]
[426512862,1782502243000,-158.0,0.00033603,30]
[426512892,1782502243000,-161.0742405,0.000349,120]
[426512905,1782502243000,-1500.0,0.00035,2]
[426512902,1782502243000,-1500.0,0.00035,2]
[426512904,1782502243000,-1500.0,0.00035,2]
[426512897,1782502243000,-24800.0,0.000349,12]
[426512899,1782502243000,-1500.0,0.00035,2]
[426512903,1782502243000,-1500.0,0.00035,2]
[426512906,1782502243000,-1500.0,0.00035,2]
[426512907,1782502243000,-1500.0,0.00035,2]
[426512898,1782502243000,-1500.0,0.00035,2]
[426512900,1782502243000,-1500.0,0.00035,2]
[426512901,1782502243000,-1500.0,0.00035,2]
[426512893,1782502243000,-178.70085078,0.000349,120]
[426512896,1782502243000,-463.13,0.000349,7]
[426512908,1782502243000,-150.0,0.00035,120]
[426512910,1782502243000,-280.05,0.0003503,30]
[426512911,1782502243000,-333.51059252,0.00035058,2]
[426512913,1782502243000,-1079911.634261,0.0003515,2]
[426512912,1782502243000,-310.57570885,0.0003514,2]
[426512914,1782502243000,-463.13,0.000352,7]
[426512920,1782502243000,-178.8927892,0.000352,30]
[426512917,1782502243000,-553.65216833,0.000352,30]
[426512919,1782502243000,-178.8927892,0.000352,30]
[426512918,1782502243000,-178.8927892,0.000352,30]
[426512921,1782502243000,-182.88,0.00035245,41]
[426512863,1782502243000,-156.0,0.00033611,30]
[426512909,1782502243000,-150.0,0.00035,2]
[426512890,1782502243000,-502.0,0.00034801,2]
[426512916,1782502243000,-553.65216833,0.000352,30]
[426512889,1782502243000,-151.0,0.0003474,2]
[426512891,1782502243000,-497.0,0.0003488,20]
[426512867,1782502243000,-644.45,0.00033916,2]
[426512868,1782502243000,-185.22,0.00033916,2]
[426512864,1782502243000,-180.0,0.00033611,30]
[426512866,1782502243000,-151.0,0.00033916,2]
[426512865,1782502243000,-644.26,0.00033916,2]
[426512872,1782502243000,-151.56702897,0.00034178,36]
[426512874,1782502243000,-57488.07294537,0.00034234,2]
[426512871,1782502243000,-785.0,0.00034028,2]
[426512873,1782502243000,-502.0,0.00034221,2]
[426512875,1782502243000,-1500.0,0.000344,7]
[426512879,1782502243000,-25000.0,0.00034565,10]
[426512880,1782502243000,-25000.0,0.00034574,10]
[426512870,1782502243000,-497.0,0.0003392,20]
[426512876,1782502243000,-2303.0459447,0.00034444,2]
[426512881,1782502243000,-25000.0,0.00034582,10]
[426512886,1782502243000,-180.0,0.00034611,30]
[426512887,1782502243000,-5868.0,0.00034688,10]
[426512883,1782502243000,-25000.0,0.000346,10]
[426512894,1782502243000,-324.55939126,0.000349,120]
[426512885,1782502243000,-156.0,0.00034611,30]
[426512884,1782502243000,-158.0,0.00034603,30]
[426512877,1782502243000,-1630.84148816,0.00034456,2]
[426512882,1782502243000,-25000.0,0.00034591,10]
[426512878,1782502243000,-463.13,0.000345,7]
[426512895,1782502243000,-947.79009157,0.000349,120]
[426512888,1782502243000,-643.74,0.00034738,2]
[426512937,1782502244000,-195.447561,0.00035362,120]
[426512941,1782502244000,-189.37,0.00035374,2]
[426512936,1782502244000,-270.0544138,0.00035362,120]
[426512935,1782502244000,-314.9512598,0.00035362,120]
[426512932,1782502244000,-591.9720596,0.00035362,120]
[426512930,1782502244000,-170.0,0.0003536,7]
[426512934,1782502244000,-386.1025824,0.00035362,120]
[426512923,1782502244000,-233.38,0.00035343,2]
[426512926,1782502244000,-587.47,0.00035344,30]
[426512925,1782502244000,-239.43743137,0.00035344,2]
[426512927,1782502244000,-923.43,0.00035344,30]
[426512928,1782502244000,-558.41,0.00035344,30]
[426512924,1782502244000,-236.28,0.00035343,2]
[426512922,1782502244000,-985.76,0.00035249,41]
[426512929,1782502244000,-922.93,0.00035344,30]
[426512933,1782502244000,-222.5670245,0.00035362,120]
[426512931,1782502244000,-170.0,0.0003536,7]
[426512940,1782502244000,-371.8845996,0.00035362,120]
[426512949,1782502244000,-444.25495516,0.00035455,30]
[426512939,1782502244000,-562.4710084,0.00035362,120]
[426512958,1782502244000,-339.37920016,0.00035455,30]
[426512956,1782502244000,-851.403706,0.00035455,30]
[426512957,1782502244000,-3478.73,0.00035455,30]
[426512955,1782502244000,-712.05,0.00035455,30]
[426512938,1782502244000,-165.5110506,0.00035362,120]
[426512953,1782502244000,-298.0,0.00035455,30]
[426512952,1782502244000,-894.32303079,0.00035455,30]
[426512950,1782502244000,-558.04,0.00035344,30]
[426512954,1782502244000,-957.5262027,0.00035455,30]
[426512946,1782502244000,-236.28,0.00035423,30]
[426512947,1782502244000,-4578.44603779,0.00035455,30]
[426512944,1782502244000,-236.28,0.00035383,7]
[426512945,1782502244000,-233.38,0.00035423,30]
[426512948,1782502244000,-350.0,0.00035455,30]
[426512942,1782502244000,-502.0,0.0003538,3]
[426512943,1782502244000,-233.38,0.00035383,7]
[426512951,1782502244000,-774.1029,0.00035455,30]
[426512963,1782502245000,-25243.64817822,0.00035455,30]
[426512961,1782502245000,-923.66,0.00035344,30]
[426512960,1782502245000,-8751.91,0.00034564,10]
[426512962,1782502245000,-45947.08792948,0.00035455,30]
[426512964,1782502246000,-12101.83724778,0.00035455,30]
[426512967,1782502246000,-2570.17426239,0.00035455,60]
[426512965,1782502246000,-2189.33526948,0.00035455,30]
[426512966,1782502246000,-839.87534244,0.00035455,30]
[426512971,1782502246000,-2501.50999946,0.00035455,60]
[426512972,1782502246000,-1580.90000002,0.00035455,60]
[426512969,1782502246000,-916.55281527,0.00035455,60]
[426512970,1782502246000,-54280.77936535,0.00035455,60]
[426512968,1782502246000,-629.46882499,0.00035455,60]
[426512974,1782502264000,999.999951,0.00037222,120]
[426512976,1782502370000,1238.0,0.00037222,120]
[426512977,1782502557000,215.5489742,0.00037222,120]
[426512980,1782502641000,-496.5,0.000147,2]
[426512979,1782502641000,-250.0,0.0001435,2]
[426512982,1782502641000,-32153.5,0.000148,2]
[426512981,1782502641000,-150.0,0.00014799,2]
[426512978,1782502641000,-250.0,0.00014,2]
[426512983,1782503275000,500.0,0.00037215,120]
[426513079,1782503431000,-281.49602122,0.00015,2]
[426513087,1782503431000,-199.5,0.000198,2]
[426513086,1782503431000,-1087.96692338,0.00019138,2]
[426513085,1782503431000,-350.0,0.00018,2]
[426513081,1782503431000,-223.0,0.00015243,2]
[426513083,1782503431000,-163.82,0.00016,2]
[426513074,1782503431000,-201.0,0.000148,2]
[426513078,1782503431000,-160.0,0.00014999,2]
[426513077,1782503431000,-150.0,0.00014947,2]
[426513075,1782503431000,-150.0,0.000148,2]
[426513076,1782503431000,-168.445108,0.000148,2]
[426513084,1782503431000,-171.43,0.00016712,2]
[426513082,1782503431000,-300.0,0.00016,2]
[426513088,1782503431000,-866.26,0.00019806,2]
[426513080,1782503431000,-150.0,0.00015095,2]
[426513090,1782503431000,-397.0,0.00020037,2]
[426513089,1782503431000,-400.0,0.0002,2]
[426513101,1782503431000,-8255.8393474,0.000208,2]
[426513102,1782503431000,-320.0,0.000208,2]
[426513100,1782503431000,-211.91966718,0.000208,2]
[426513099,1782503431000,-251.09155477,0.000207,2]
[426513098,1782503431000,-152.0,0.000207,2]
[426513094,1782503431000,-152.0,0.000207,2]
[426513103,1782503431000,-211.91966718,0.000211,2]
[426513097,1782503431000,-152.0,0.000207,2]
[426513092,1782503431000,-115194.0656,0.000207,2]
[426513093,1782503431000,-152.0,0.000207,2]
[426513096,1782503431000,-152.0,0.000207,2]
[426513095,1782503431000,-152.0,0.000207,2]
[426513091,1782503431000,-150.0,0.00020699,2]
[426513146,1782503432000,-8255.8393474,0.000226,2]
[426513144,1782503432000,-8255.8393474,0.000221,2]
[426513145,1782503432000,-8255.8393474,0.000224,2]
[426513142,1782503432000,-8255.8393474,0.000219,2]
[426513132,1782503432000,-151.0,0.000219,2]
[426513139,1782503432000,-151.0,0.000219,2]
[426513141,1782503432000,-151.0,0.000219,2]
[426513140,1782503432000,-151.0,0.000219,2]
[426513133,1782503432000,-151.0,0.000219,2]
[426513143,1782503432000,-5000.0,0.00021918,2]
[426513147,1782503432000,-450.0,0.00022615,2]
[426513150,1782503432000,-283.39815942,0.00022907,2]
[426513149,1782503432000,-5623.74352871,0.000228,2]
[426513154,1782503432000,-166.66,0.00023787,30]
[426513151,1782503432000,-5700.0,0.00023,3]
[426513153,1782503432000,-1655.93,0.00023683,2]
[426513152,1782503432000,-166.66,0.00023296,30]
[426513155,1782503432000,-175.46,0.00024,2]
[426513156,1782503432000,-163.31,0.00024174,2]
[426513157,1782503432000,-166.66,0.00024277,30]
[426513158,1782503432000,-267.73,0.00024494,2]
[426513159,1782503432000,-509.37,0.00024523,2]
[426513136,1782503432000,-151.0,0.000219,2]
[426513148,1782503432000,-2632.09581869,0.000228,2]
[426513134,1782503432000,-151.0,0.000219,2]
[426513106,1782503432000,-283.39815951,0.00021145,2]
[426513138,1782503432000,-151.0,0.000219,2]
[426513161,1782503432000,-352.34,0.00024658,2]
[426513104,1782503432000,-320.0,0.000211,2]
[426513105,1782503432000,-8255.8393474,0.000211,2]
[426513109,1782503432000,-211.91966718,0.000213,2]
[426513112,1782503432000,-320.0,0.000213,2]
[426513111,1782503432000,-8255.8393474,0.000213,2]
[426513108,1782503432000,-450.0,0.00021245,2]
[426513113,1782503432000,-211.91966718,0.000215,2]
[426513114,1782503432000,-8255.8393474,0.000215,2]
[426513116,1782503432000,-320.0,0.000215,2]
[426513121,1782503432000,-320.0,0.000217,2]
[426513135,1782503432000,-151.0,0.000219,2]
[426513118,1782503432000,-211.91966718,0.000217,2]
[426513122,1782503432000,-151.0,0.000219,2]
[426513123,1782503432000,-151.0,0.000219,2]
[426513124,1782503432000,-151.0,0.000219,2]
[426513127,1782503432000,-151.0,0.000219,2]
[426513128,1782503432000,-151.0,0.000219,2]
[426513125,1782503432000,-151.0,0.000219,2]
[426513126,1782503432000,-151.0,0.000219,2]
[426513129,1782503432000,-151.0,0.000219,2]
[426513130,1782503432000,-151.0,0.000219,2]
[426513131,1782503432000,-151.0,0.000219,2]
[426513137,1782503432000,-151.0,0.000219,2]
[426513120,1782503432000,-8255.8393474,0.000217,2]
[426513163,1782503432000,-166.66,0.00024768,30]
[426513172,1782503432000,-160.51414605,0.00026263,2]
[426513160,1782503432000,-1000.0,0.00024658,2]
[426513192,1782503432000,-500.0,0.00028572,20]
[426513194,1782503432000,-500.0,0.00028572,20]
[426513195,1782503432000,-500.0,0.00028572,20]
[426513202,1782503432000,-160.0,0.00028608,30]
[426513203,1782503432000,-157.0,0.00028608,30]
[426513199,1782503432000,-500.0,0.00028572,20]
[426513200,1782503432000,-415.07396016,0.00028572,20]
[426513201,1782503432000,-161.0,0.00028608,30]
[426513196,1782503432000,-500.0,0.00028572,20]
[426513198,1782503432000,-500.0,0.00028572,20]
[426513197,1782503432000,-500.0,0.00028572,20]
[426513193,1782503432000,-500.0,0.00028572,20]
[426513204,1782503432000,-500.0,0.00029178,2]
[426513207,1782503432000,-283.39815942,0.00029953,2]
[426513206,1782503432000,-158.0,0.00029608,30]
[426513212,1782503432000,-500.85319598,0.00030606,5]
[426513208,1782503432000,-9078.0,0.00030148,5]
[426513211,1782503432000,-3659.68634218,0.00030606,5]
[426513209,1782503432000,-8886.0,0.00030212,5]
[426513210,1782503432000,-380.659,0.00030517,26]
[426513213,1782503432000,-1188.79418314,0.00030606,5]
[426513214,1782503432000,-543.42814885,0.00030606,5]
[426513215,1782503432000,-359.53185231,0.00030606,5]
[426513162,1782503432000,-283.39815942,0.00024668,2]
[426513205,1782503432000,-160.0,0.00029608,30]
[426513190,1782503432000,-500.0,0.00028572,20]
[426513189,1782503432000,-500.0,0.00028572,20]
[426513176,1782503432000,-1297.74116285,0.00026295,14]
[426513165,1782503432000,-166.66,0.00025258,30]
[426513166,1782503432000,-150.0,0.00025572,2]
[426513167,1782503432000,-224.09450299,0.00025705,2]
[426513168,1782503432000,-166.66,0.00025749,30]
[426513169,1782503432000,-2137.0,0.00025777,2]
[426513170,1782503432000,-552.40090571,0.00025795,14]
[426513174,1782503432000,-1457.79473002,0.00026295,14]
[426513216,1782503432000,-370.66038642,0.00030606,5]
[426513171,1782503432000,-197.33904975,0.00026263,2]
[426513173,1782503432000,-156.93394852,0.00026263,2]
[426513186,1782503432000,-500.0,0.00028572,20]
[426513164,1782503432000,-234.15,0.00025218,2]
[426513177,1782503432000,-2549.40219423,0.00026295,14]
[426513178,1782503432000,-5205.321,0.00026295,14]
[426513179,1782503432000,-283.39815942,0.0002643,2]
[426513180,1782503432000,-866.26,0.00027299,2]
[426513181,1782503432000,-4565.94,0.00027397,10]
[426513182,1782503432000,-500.0,0.000275,7]
[426513183,1782503432000,-283.39815942,0.00028192,2]
[426513185,1782503432000,-500.0,0.00028572,20]
[426513184,1782503432000,-500.0,0.00028572,20]
[426513188,1782503432000,-500.0,0.00028572,20]
[426513187,1782503432000,-500.0,0.00028572,20]
[426513191,1782503432000,-500.0,0.00028572,20]
[426513175,1782503432000,-2571.72270168,0.00026295,14]
[426513267,1782503437000,-500.0,0.00022099,2]
[426513268,1782503437000,-500.0,0.00022099,2]
[426513266,1782503437000,-500.0,0.00022099,2]
[426513257,1782503437000,-500.0,0.00022099,2]
[426513265,1782503437000,-500.0,0.00022099,2]
[426513263,1782503437000,-500.0,0.00022099,2]
[426513261,1782503437000,-500.0,0.00022099,2]
[426513264,1782503437000,-500.0,0.00022099,2]
[426513259,1782503437000,-500.0,0.00022099,2]
[426513271,1782503438000,-500.0,0.00022099,2]
[426513270,1782503438000,-500.0,0.00022099,2]
[426513269,1782503438000,-500.0,0.00022099,2]
[426513273,1782503438000,-500.0,0.00022099,2]
[426513272,1782503438000,-500.0,0.00022099,2]
[426513274,1782503438000,-500.0,0.00022099,2]
[426513275,1782503438000,-500.0,0.00022099,2]
[426513279,1782503438000,-428.68800618,0.00022099,2]
[426513276,1782503438000,-500.0,0.00022099,2]
[426513277,1782503438000,-266.37846476,0.00022099,2]
[426513280,1782503438000,-71.31199382,0.00022099,2]
[426513281,1782503438000,-500.0,0.00022099,2]
[426513278,1782503438000,-187.78209677,0.00022099,2]
[426513283,1782503438000,-2554.43447752,0.00030138,10]
[426513284,1782503438000,-2471.04589112,0.00030606,5]
[426513285,1782503438000,-288.27225766,0.00030883,2]
[426513286,1782503438000,-1453.31615736,0.00030983,2]
[426513287,1782503438000,-2109.68384264,0.00030983,2]
[426513294,1782503438000,-465.84889493,0.00031149,5]
[426513288,1782503438000,-935.0,0.00030983,2]
[426513290,1782503438000,-158.67069626,0.00031,7]
[426513289,1782503438000,-3191.0,0.00030983,2]
[426513291,1782503438000,-841.32930374,0.00031,7]
[426513292,1782503438000,-300.52099626,0.00031149,5]
[426513293,1782503438000,-263.36630388,0.00031149,5]
[426513295,1782503438000,-1611.49625199,0.00031149,5]
[426513282,1782503438000,-6152.50552248,0.00030138,10]
[426513301,1782503440000,-1557.38467929,0.00031149,5]
[426513302,1782503440000,-1525.6072964,0.00031149,5]
[426513305,1782503440000,-491.42396994,0.00031149,5]
[426513304,1782503440000,-1241.24402509,0.00031149,5]
[426513303,1782503440000,-3125.77557725,0.00031149,5]
[426513308,1782503442000,-829.62738996,0.00031149,5]
[426513309,1782503443000,-623.90179998,0.00031149,5]
[426513326,1782503446000,-200.0,0.00032475,2]
[426513342,1782503446000,-25000.0,0.00034556,10]
[426513338,1782503446000,-25000.0,0.00034547,10]
[426513333,1782503446000,-509.37,0.00034332,2]
[426513332,1782503446000,-502.0,0.00034215,2]
[426513331,1782503446000,-855.0,0.00034,2]
[426513327,1782503446000,-283.39815942,0.00033477,2]
[426513335,1782503446000,-518.0,0.00034544,60]
[426513324,1782503446000,-283.39815942,0.00031715,2]
[426513325,1782503446000,-630.3887174,0.00032126,2]
[426513329,1782503446000,-1233.178,0.00033983,2]
[426513328,1782503446000,-1991.0,0.00033494,10]
[426513323,1782503446000,-9147.0,0.00031559,5]
[426513322,1782503446000,-5458.92781503,0.00031149,5]
[426513321,1782503446000,-299.875,0.00031149,5]
[426513330,1782503446000,-935.0,0.00033983,2]
[426513336,1782503446000,-10315.87,0.00034544,60]
[426513340,1782503446000,-604.27764337,0.00034555,7]
[426513337,1782503446000,-500.0,0.00034546,7]
[426513334,1782503446000,-1500.0,0.000344,7]
[426513357,1782503446000,-522.52533801,0.00035,2]
[426513355,1782503446000,-1077.88171652,0.00035,2]
[426513350,1782503446000,-1222.6086,0.00035,2]
[426513349,1782503446000,-7255.78,0.0003499,10]
[426513353,1782503446000,-1500.0,0.00035,2]
[426513352,1782503446000,-1500.0,0.00035,2]
[426513354,1782503446000,-27544.35423695,0.00035,2]
[426513351,1782503446000,-1500.0,0.00035,2]
[426513347,1782503446000,-816.69273799,0.000349,120]
[426513346,1782503446000,-161.0742405,0.000349,120]
[426513344,1782503446000,-2986.0,0.00034834,10]
[426513345,1782503446000,-480.67741915,0.000349,120]
[426513343,1782503446000,-502.0,0.00034818,2]
[426513339,1782503446000,-151.0,0.00034553,14]
[426513356,1782503446000,-3159.20000002,0.00035,2]
[426513341,1782503446000,-500.0,0.00034555,7]
[426513348,1782503446000,-350.0,0.00034953,37]
[426513359,1782503648000,14447.033427,7.945e-05,2]
[426513369,1782504210000,574.13438195,0.00037215,120]
[426513368,1782504210000,500.0,0.00037215,120]
[426513390,1782504622000,10837.4286,0.0002488,120]
[426513395,1782504631000,-2500.0,0.00017576,2]
[426513394,1782504631000,-150.0,0.00017571,2]
[426513397,1782504631000,-2500.0,0.00017774,2]
[426513399,1782504631000,-328.01,0.00018429,2]
[426513400,1782504631000,-357.39691055,0.00019306,2]
[426513396,1782504631000,-237.01373604,0.00017594,2]
[426513401,1782504631000,-2500.0,0.00019306,2]
[426513398,1782504631000,-2500.0,0.00017774,2]
[426513416,1782504632000,-499.99,0.00024174,2]
[426513415,1782504632000,-150.99,0.00024174,2]
[426513414,1782504632000,-777.74734465,0.0002398,2]
[426513413,1782504632000,-1128.0,0.000237,2]
[426513412,1782504632000,-199.5,0.00022571,2]
[426513408,1782504632000,-400.0,0.000214,2]
[426513410,1782504632000,-400.0,0.000216,2]
[426513409,1782504632000,-4782.07417076,0.0002143,2]
[426513405,1782504632000,-151.51702776,0.0002,20]
[426513406,1782504632000,-400.0,0.000209,2]
[426513402,1782504632000,-2500.0,0.00019324,2]
[426513403,1782504632000,-250.0,0.00019329,2]
[426513404,1782504632000,-229.7,0.00019806,2]
[426513417,1782504632000,-5183.78,0.00024174,2]
[426513411,1782504632000,-400.0,0.000218,2]
[426513420,1782504632000,-4254.59,0.00024174,2]
[426513407,1782504632000,-400.0,0.000211,2]
[426513422,1782504632000,-41659.06,0.00024174,2]
[426513429,1782504632000,-153.02694134,0.00025704,2]
[426513433,1782504632000,-312.37053968,0.00028699,2]
[426513435,1782504632000,-326.86209968,0.00028699,2]
[426513434,1782504632000,-301.02192288,0.00028699,2]
[426513432,1782504632000,-500.0,0.000275,7]
[426513431,1782504632000,-229.7,0.00027299,2]
[426513430,1782504632000,-448.18900597,0.00026257,2]
[426513421,1782504632000,-3555.95,0.00024174,2]
[426513427,1782504632000,-45.97305866,0.00025704,2]
[426513426,1782504632000,-150.0,0.00025675,7]
[426513424,1782504632000,-9999.99,0.00024174,2]
[426513425,1782504632000,-999.99,0.00024174,2]
[426513423,1782504632000,-3130.28,0.00024174,2]
[426513419,1782504632000,-9999.99,0.00024174,2]
[426513418,1782504632000,-9999.99,0.00024174,2]
[426513428,1782504632000,-301.0,0.00025704,2]
[426513467,1782504638000,-1000.0,0.00029244,2]
[426513468,1782504638000,-1123.51,0.0002967,2]
[426513466,1782504638000,-711.25543776,0.00028699,2]
[426513471,1782504638000,-426.33954584,0.000301,7]
[426513472,1782504638000,-3110.35370278,0.000301,7]
[426513469,1782504638000,-533.0,0.00029927,20]
[426513470,1782504638000,-3329.60328122,0.000301,7]
[426513483,1782504643000,-509.42078982,0.000301,7]
[426513494,1782504646000,-303.7301216,0.00030913,20]
[426513488,1782504646000,-3391.57329015,0.00030447,2]
[426513491,1782504646000,-166.66,0.00030724,30]
[426513493,1782504646000,-209.40712677,0.00030913,20]
[426513489,1782504646000,-664.0,0.00030471,5]
[426513490,1782504646000,-304.528,0.00030516,26]
[426513492,1782504646000,-1119.66815451,0.000309,2]
[426513487,1782504646000,-16983.39225053,0.000301,7]
[426513486,1782504646000,-356.24499099,0.000301,7]
[426513519,1782504663000,2500.0,0.00030957,120]
[426513520,1782504663000,2500.0,0.00031136,120]
[426513522,1782504663000,2500.0,0.00031136,120]
[426513521,1782504663000,2500.0,0.00031136,120]
[426513523,1782504698000,4400.2015,0.000217,120]
[426513525,1782504727000,2051.29687292,0.0002736,120]
[426513524,1782504727000,2500.0,0.00027999,120]
[426513537,1782505259000,413.09450671,0.00030516,120]
[426513538,1782505259000,413.09450671,0.00030516,120]
[426513540,1782505259000,413.09450671,0.00030516,120]
[426513539,1782505259000,413.09450671,0.00030516,120]
[426513542,1782505259000,413.09450671,0.00030516,120]
[426513543,1782505259000,413.09450671,0.00030516,120]
[426513544,1782505259000,413.09450671,0.00030516,120]
[426513541,1782505259000,413.09450671,0.00030516,120]
[426513546,1782505260000,413.09450671,0.00030516,120]
[426513545,1782505260000,413.09450671,0.00030516,120]
[426513548,1782505288000,295.39633781,0.00030516,120]
[426513547,1782505288000,295.39633781,0.00030516,120]
[426513550,1782505289000,295.39633781,0.00030516,120]
[426513549,1782505289000,295.39633781,0.00030516,120]
[426513551,1782505289000,295.39633781,0.00030516,120]
[426513555,1782505289000,295.39633781,0.00030516,120]
[426513553,1782505289000,295.39633781,0.00030516,120]
[426513554,1782505289000,295.39633781,0.00030516,120]
[426513556,1782505289000,295.39633781,0.00030516,120]
[426513552,1782505289000,295.39633781,0.00030516,120]
[426513578,1782505741000,2000.0,0.00031135,120]
[426513584,1782505832000,-206.73,0.00020075,2]
[426513586,1782505832000,-2500.0,0.00021973,2]
[426513585,1782505832000,-216.42324807,0.00020691,2]
[426513587,1782505832000,-5990.3866413,0.00025454,2]
[426513591,1782505832000,-417.5,0.00025454,2]
[426513588,1782505832000,-382.4132988,0.00025454,2]
[426513592,1782505832000,-75.77745447,0.00025454,2]
[426513590,1782505832000,-1079.96336635,0.00025454,2]